[Event "Championnat de France Universitaire 2022"]
[Site "Limoges, France"]
[Date "2022.02.05"]
[Round "5.3"]
[White "Defromont, Benjamin"]
[Black "Marchais, Antoine"]
[Result "1-0"]
[TimeControl "15'+5''"]
[WhiteElo "2263"]
[BlackElo "1981"]

1. e4 {[%clk 00:15:08]} {[%emt 00:00:02]} e6 {[%clk 00:15:09]} 2. d4 {[%clk
00:15:12]} {[%emt 00:00:01]} d5 {[%clk 00:15:13]} 3. Nc3 {[%clk 00:15:16]}
{[%emt 00:00:02]} Nf6 {[%clk 00:15:17]} 4. e5 {[%clk 00:15:20]} {[%emt
00:00:02]} Nfd7 {[%clk 00:15:21]} 5. f4 {[%clk 00:15:23]} {[%emt 00:00:01]} c5
{[%clk 00:15:25]} {[%emt 00:00:01]} 6. Nf3 {[%clk 00:15:27]} Nc6 {[%clk
00:15:29]} {[%emt 00:00:01]} 7. Be3 {[%clk 00:15:31]} {[%emt 00:00:02]} cxd4
{[%clk 00:15:29]} {[%emt 00:00:04]} 8. Nxd4 {[%clk 00:15:34]} {[%emt 00:00:02]}
Bc5 {[%clk 00:15:30]} {[%emt 00:00:03]} 9. Qd2 {[%clk 00:15:38]} {[%emt
00:00:02]} Nxd4 {[%clk 00:15:33]} {[%emt 00:00:02]} 10. Bxd4 {[%clk 00:15:39]}
{[%emt 00:00:03]} Bxd4 {[%clk 00:15:28]} {[%emt 00:00:10]} 11. Qxd4 {[%clk
00:15:42]} {[%emt 00:00:02]} Qb6 {[%clk 00:15:32]} 12. Nb5 {[%clk 00:14:10]}
{[%emt 00:01:38]} Qxd4 {[%clk 00:15:34]} {[%emt 00:00:04]} 13. Nxd4 {[%clk
00:14:14]} {[%emt 00:00:01]} a6 {[%clk 00:15:38]} {[%emt 00:00:01]} 14. O-O-O
{[%clk 00:13:02]} {[%emt 00:01:16]} Ke7 {[%clk 00:15:04]} {[%emt 00:00:39]} 15.
Bd3 {[%clk 00:12:06]} {[%emt 00:01:02]} g6 {[%clk 00:15:08]} {[%emt 00:00:01]}
16. g4 {[%clk 00:07:53]} {[%emt 00:04:18]} h5 {[%clk 00:11:41]} {[%emt
00:03:31]} 17. h3 {[%clk 00:07:57]} Nc5 {[%clk 00:11:45]} {[%emt 00:00:01]} 18.
Rde1 {[%clk 00:03:54]} {[%emt 00:04:09]} hxg4 {[%clk 00:10:33]} {[%emt
00:01:17]} 19. hxg4 {[%clk 00:03:56]} {[%emt 00:00:04]} Bd7 {[%clk 00:10:37]}
20. Kb1 {[%clk 00:03:38]} {[%emt 00:00:23]} Rag8 {[%clk 00:09:06]} {[%emt
00:01:35]} 21. Kc1 {[%clk 00:02:06]} {[%emt 00:01:38]} Rc8 {[%clk 00:08:45]}
{[%emt 00:00:25]} 22. Kd2 {[%clk 00:01:58]} {[%emt 00:00:13]} Rcf8 {[%clk
00:06:40]} {[%emt 00:02:09]} 23. Nf3 {[%clk 00:00:59]} {[%emt 00:01:05]} Bc6
{[%clk 00:04:00]} {[%emt 00:02:45]} 24. Nd4 {[%clk 00:01:03]} Bd7 {[%clk
00:04:04]} {[%emt 00:00:01]} 25. Ke3 {[%clk 00:01:01]} {[%emt 00:00:07]} Rfg8
{[%clk 00:03:57]} {[%emt 00:00:13]} 26. Nf3 {[%clk 00:00:49]} {[%emt 00:00:17]}
Bc6 {[%clk 00:03:59]} {[%emt 00:00:03]} 27. Kd4 {[%clk 00:00:39]} {[%emt
00:00:15]} b6 {[%clk 00:03:43]} {[%emt 00:00:21]} 28. Ng5 {[%clk 00:00:34]}
{[%emt 00:00:11]} a5 {[%clk 00:03:09]} {[%emt 00:00:38]} 29. Rh7 {[%clk
00:00:09]} {[%emt 00:00:29]} Rxh7 {[%clk 00:03:13]} {[%emt 00:00:02]} 30. Nxh7
{[%clk 00:00:14]} Rh8 {[%clk 00:03:16]} 31. Rh1 {[%clk 00:00:17]} {[%emt
00:00:01]} Nd7 {[%clk 00:02:56]} {[%emt 00:00:24]} 32. Rh3 {[%clk 00:00:15]}
{[%emt 00:00:08]} Nf8 {[%clk 00:02:46]} {[%emt 00:00:13]} 33. Ng5 {[%clk
00:00:19]} {[%emt 00:00:03]} Rxh3 34. Nxh3 {[%clk 00:00:23]} Nd7 {[%clk
00:02:53]} {[%emt 00:00:02]} 35. Ng1 {[%clk 00:00:10]} {[%emt 00:00:19]} Nc5
{[%clk 00:01:51]} {[%emt 00:01:07]} 36. b3 {[%clk 00:00:14]} Be8 {[%clk
00:01:47]} {[%emt 00:00:07]} 37. Nf3 {[%clk 00:00:13]} {[%emt 00:00:06]} Bc6
{[%clk 00:01:37]} {[%emt 00:00:15]} 38. a3 {[%clk 00:00:14]} {[%emt 00:00:05]}
Bd7 {[%clk 00:01:02]} {[%emt 00:00:40]} 39. Nd2 {[%clk 00:00:10]} {[%emt
00:00:09]} f5 {[%clk 00:00:33]} {[%emt 00:00:34]} 40. exf6+ {[%clk 00:00:10]}
{[%emt 00:00:05]} Kxf6 {[%clk 00:00:37]} 41. Nf3 {[%clk 00:00:10]} {[%emt
00:00:04]} Nxd3 {[%clk 00:00:33]} {[%emt 00:00:09]} 42. Kxd3 {[%clk 00:00:08]}
{[%emt 00:00:07]} Bb5+ {[%clk 00:00:29]} {[%emt 00:00:09]} 43. Ke3 {[%clk
00:00:09]} {[%emt 00:00:04]} Bf1 {[%clk 00:00:25]} {[%emt 00:00:08]} 44. g5+
{[%clk 00:00:11]} {[%emt 00:00:03]} Kg7 {[%clk 00:00:25]} {[%emt 00:00:04]} 45.
Ne5 {[%clk 00:00:08]} {[%emt 00:00:09]} Bh3 {[%clk 00:00:25]} {[%emt 00:00:04]}
46. Nd7 {[%clk 00:00:09]} {[%emt 00:00:05]} Bf5 {[%clk 00:00:26]} {[%emt
00:00:04]} 47. c3 {[%clk 00:00:11]} {[%emt 00:00:02]} b5 {[%clk 00:00:26]}
{[%emt 00:00:05]} 48. Kd4 {[%clk 00:00:14]} {[%emt 00:00:03]} Kf7 {[%clk
00:00:22]} {[%emt 00:00:08]} 49. Ne5+ {[%clk 00:00:16]} {[%emt 00:00:03]} Ke7
{[%clk 00:00:23]} {[%emt 00:00:04]} 50. Kc5 {[%clk 00:00:21]} a4 {[%clk
00:00:12]} {[%emt 00:00:16]} 51. b4 {[%clk 00:00:19]} {[%emt 00:00:06]} Kd8
{[%clk 00:00:07]} {[%emt 00:00:11]} 52. Kxb5 {[%clk 00:00:20]} {[%emt
00:00:04]} Bc2 {[%clk 00:00:11]} 53. Kc6 {[%clk 00:00:15]} {[%emt 00:00:10]}
Kc8 {[%clk 00:00:16]} 54. Kd6 {[%emt 00:00:09]} 1-0

[ePGN "0.1;DGT LiveChess/2.2.5"]

[Event "Championnat de France Universitaire 2022"]
[Site "Limoges, France"]
[Date "2022.02.05"]
[Round "6.1"]
[White "Derige Kane, Yan"]
[Black "Rakotomaharo, Fy Antenaina"]
[Result "0-1"]
[TimeControl "15'+5''"]
[WhiteElo "2148"]
[BlackElo "2474"]

1. d4 {[%clk 00:15:09]} {[%emt 00:24:55]} Nf6 {[%clk 00:15:08]} {[%emt
00:00:02]} 2. Bg5 {[%emt 00:00:31]} d5 {[%clk 00:15:07]} 3. Nd2 {[%clk
00:14:23]} {[%emt 00:00:31]} c5 {[%clk 00:15:08]} {[%emt 00:00:04]} 4. dxc5
{[%clk 00:13:50]} {[%emt 00:00:38]} Qa5 {[%clk 00:15:04]} {[%emt 00:00:08]} 5.
Bxf6 {[%clk 00:12:34]} {[%emt 00:01:21]} gxf6 {[%clk 00:15:07]} {[%emt
00:00:02]} 6. Ngf3 {[%clk 00:11:05]} {[%emt 00:01:34]} Nc6 {[%clk 00:15:01]}
{[%emt 00:00:11]} 7. c3 {[%clk 00:10:39]} {[%emt 00:00:31]} Qxc5 {[%clk
00:15:03]} {[%emt 00:00:03]} 8. g3 {[%clk 00:10:26]} {[%emt 00:00:19]} e5
{[%clk 00:14:23]} {[%emt 00:00:44]} 9. Nb3 {[%clk 00:10:28]} {[%emt 00:00:03]}
Qd6 {[%clk 00:14:24]} {[%emt 00:00:04]} 10. Bg2 {[%clk 00:10:29]} {[%emt
00:00:04]} Be6 {[%clk 00:14:24]} {[%emt 00:00:04]} 11. Qd2 {[%clk 00:09:53]}
{[%emt 00:00:42]} O-O-O {[%clk 00:13:51]} {[%emt 00:00:38]} 12. O-O {[%clk
00:09:51]} {[%emt 00:00:07]} Kb8 {[%clk 00:13:44]} {[%emt 00:00:12]} 13. Rad1
{[%clk 00:09:52]} {[%emt 00:00:03]} h5 {[%clk 00:13:12]} {[%emt 00:00:38]} 14.
Nh4 {[%clk 00:09:18]} {[%emt 00:00:39]} f5 {[%clk 00:13:01]} {[%emt 00:00:16]}
15. Qc2 {[%clk 00:09:11]} {[%emt 00:00:12]} e4 {[%clk 00:12:34]} {[%emt
00:00:32]} 16. f3 {[%clk 00:08:26]} {[%emt 00:00:50]} Qe5 {[%clk 00:12:14]}
{[%emt 00:00:25]} 17. Nd4 {[%clk 00:07:50]} {[%emt 00:00:40]} Be7 {[%clk
00:10:18]} {[%emt 00:02:02]} 18. Nxe6 {[%clk 00:06:16]} {[%emt 00:01:39]} Qxe6
{[%clk 00:10:01]} {[%emt 00:00:22]} 19. fxe4 {[%clk 00:06:18]} {[%emt
00:00:03]} fxe4 {[%clk 00:09:54]} {[%emt 00:00:12]} 20. Nf5 {[%clk 00:06:16]}
{[%emt 00:00:07]} h4 {[%clk 00:09:56]} {[%emt 00:00:04]} 21. Qd2 {[%clk
00:05:55]} {[%emt 00:00:26]} Bc5+ {[%clk 00:09:16]} {[%emt 00:00:45]} 22. e3
{[%clk 00:02:44]} {[%emt 00:03:15]} hxg3 {[%clk 00:09:17]} {[%emt 00:00:04]} 23.
hxg3 {[%clk 00:02:47]} {[%emt 00:00:02]} Ne5 {[%clk 00:09:14]} {[%emt
00:00:08]} 24. Qe2 {[%clk 00:01:23]} {[%emt 00:01:29]} Rdg8 {[%clk 00:08:57]}
{[%emt 00:00:21]} 25. Rf4 {[%clk 00:00:45]} {[%emt 00:00:43]} Rg5 {[%clk
00:09:00]} {[%emt 00:00:02]} 26. Nd4 {[%clk 00:00:17]} {[%emt 00:00:34]} Bxd4
{[%clk 00:08:42]} {[%emt 00:00:22]} 27. exd4 {[%clk 00:00:16]} {[%emt
00:00:07]} Nd3 {[%clk 00:07:49]} {[%emt 00:00:58]} 28. Qe3 {[%clk 00:00:11]}
{[%emt 00:00:10]} Rhg8 {[%clk 00:07:32]} {[%emt 00:00:21]} 29. Rxd3 {[%clk
00:00:08]} {[%emt 00:00:09]} exd3 {[%clk 00:07:35]} {[%emt 00:00:02]} 30. Qxe6
{[%clk 00:00:11]} {[%emt 00:00:03]} fxe6 {[%clk 00:07:38]} 31. Rf2 {[%clk
00:00:08]} {[%emt 00:00:08]} Rxg3 {[%clk 00:07:40]} {[%emt 00:00:03]} 0-1

[Event "Championnat de France Universitaire 2022"]
[Site "Limoges, France"]
[Date "2022.02.05"]
[Round "6.4"]
[White "Gatineau, Yovann"]
[Black "Lux, Hugo De Melo"]
[Result "1-0"]
[TimeControl "15'+5''"]
[WhiteElo "2384"]
[BlackElo "2326"]

1. d4 {[%clk 00:15:08]} {[%emt 00:00:02]} Nf6 {[%clk 00:15:09]} {[%emt
00:00:01]} 2. Bf4 {[%clk 00:15:12]} {[%emt 00:00:03]} e6 {[%clk 00:15:10]}
{[%emt 00:00:03]} 3. e3 {[%clk 00:15:16]} b6 {[%clk 00:15:14]} {[%emt
00:00:03]} 4. Nf3 {[%clk 00:15:13]} {[%emt 00:00:07]} Bb7 {[%clk 00:15:19]} 5.
Nbd2 {[%clk 00:15:17]} {[%emt 00:00:01]} d6 {[%clk 00:15:21]} {[%emt 00:00:03]}
6. c3 {[%clk 00:15:20]} {[%emt 00:00:02]} Nbd7 {[%clk 00:15:22]} {[%emt
00:00:03]} 7. h3 {[%clk 00:15:22]} {[%emt 00:00:03]} Qe7 {[%clk 00:14:56]}
{[%emt 00:00:31]} 8. Qa4 {[%clk 00:15:12]} {[%emt 00:00:15]} g6 {[%clk
00:14:17]} {[%emt 00:00:43]} 9. Ba6 {[%clk 00:15:10]} {[%emt 00:00:06]} Bxa6
{[%clk 00:13:47]} {[%emt 00:00:36]} 10. Qxa6 {[%clk 00:15:13]} {[%emt
00:00:02]} Bg7 {[%clk 00:11:41]} {[%emt 00:02:11]} 11. O-O {[%clk 00:14:17]}
{[%emt 00:01:00]} O-O {[%clk 00:10:32]} {[%emt 00:01:14]} 12. a4 {[%clk
00:14:02]} {[%emt 00:00:21]} e5 {[%clk 00:08:19]} {[%emt 00:02:18]} 13. Bh2
{[%clk 00:14:04]} {[%emt 00:00:02]} Rfc8 {[%clk 00:04:42]} {[%emt 00:03:42]} 14.
Rfd1 {[%clk 00:13:41]} {[%emt 00:00:27]} e4 {[%clk 00:04:19]} {[%emt 00:00:29]}
15. Ne1 {[%clk 00:13:44]} {[%emt 00:00:02]} Nd5 {[%clk 00:04:23]} {[%emt
00:00:01]} 16. a5 {[%clk 00:12:37]} {[%emt 00:01:12]} f5 {[%clk 00:04:24]}
{[%emt 00:00:04]} 17. Qb7 {[%clk 00:10:41]} {[%emt 00:02:00]} c6 {[%clk
00:02:51]} {[%emt 00:01:39]} 18. axb6 {[%clk 00:10:43]} {[%emt 00:00:02]} a5
{[%clk 00:02:37]} {[%emt 00:00:19]} 19. Rxa5 {[%clk 00:09:51]} {[%emt
00:00:57]} Rab8 {[%clk 00:02:37]} {[%emt 00:00:05]} 20. Qa6 {[%clk 00:09:20]}
{[%emt 00:00:35]} N7xb6 {[%clk 00:01:59]} {[%emt 00:00:43]} 21. Qe2 {[%clk
00:09:03]} {[%emt 00:00:22]} Rb7 {[%clk 00:02:03]} {[%emt 00:00:01]} 22. Nc2
{[%clk 00:08:42]} {[%emt 00:00:26]} Nd7 {[%clk 00:01:42]} {[%emt 00:00:27]} 23.
Nc4 {[%clk 00:08:33]} {[%emt 00:00:13]} 1-0

[Event "Championnat de France Universitaire 2022"]
[Site "Limoges, France"]
[Date "2022.02.05"]
[Round "6.2"]
[White "Albaric, Etienne"]
[Black "Defromont, Benjamin"]
[Result "1/2-1/2"]
[TimeControl "15'+5''"]
[WhiteElo "2235"]
[BlackElo "2263"]

1. e4 {[%clk 00:15:09]} e5 {[%clk 00:15:09]} {[%emt 00:00:03]} 2. Nf3 {[%clk
00:15:12]} Nc6 {[%clk 00:15:13]} {[%emt 00:00:02]} 3. Bc4 {[%clk 00:15:15]}
{[%emt 00:00:02]} Bc5 {[%clk 00:15:15]} {[%emt 00:00:03]} 4. c3 {[%clk
00:14:30]} {[%emt 00:00:50]} Nf6 {[%clk 00:15:18]} {[%emt 00:00:01]} 5. d3
{[%clk 00:14:34]} {[%emt 00:00:01]} h6 {[%clk 00:15:18]} {[%emt 00:00:05]} 6.
Nbd2 {[%clk 00:14:34]} {[%emt 00:00:05]} d6 {[%clk 00:15:07]} {[%emt 00:00:15]}
7. a4 {[%clk 00:14:26]} {[%emt 00:00:13]} a6 {[%clk 00:13:54]} {[%emt
00:01:18]} 8. b4 {[%clk 00:14:05]} {[%emt 00:00:27]} Ba7 {[%clk 00:13:39]}
{[%emt 00:00:20]} 9. Qb3 {[%clk 00:13:59]} {[%emt 00:00:11]} O-O {[%clk
00:13:35]} {[%emt 00:00:09]} 10. h3 {[%clk 00:13:16]} {[%emt 00:00:48]} Ne7
{[%clk 00:13:09]} {[%emt 00:00:31]} 11. O-O {[%clk 00:10:26]} {[%emt 00:02:55]}
c6 {[%clk 00:12:35]} {[%emt 00:00:38]} 12. Qd1 {[%clk 00:09:47]} {[%emt
00:00:44]} d5 {[%clk 00:12:10]} {[%emt 00:00:31]} 13. Bb3 {[%clk 00:09:51]}
{[%emt 00:00:01]} Ng6 {[%clk 00:12:08]} {[%emt 00:00:06]} 14. exd5 {[%clk
00:08:44]} {[%emt 00:01:13]} cxd5 {[%clk 00:11:39]} {[%emt 00:00:34]} 15. d4
{[%clk 00:08:48]} e4 {[%clk 00:10:20]} {[%emt 00:01:24]} 16. Ne5 {[%clk
00:08:51]} {[%emt 00:00:01]} Qc7 {[%clk 00:09:28]} {[%emt 00:00:57]} 17. Nxg6
{[%clk 00:07:45]} {[%emt 00:01:11]} fxg6 {[%clk 00:09:31]} {[%emt 00:00:01]} 18.
Nxe4 {[%clk 00:06:40]} {[%emt 00:01:10]} Nxe4 {[%clk 00:07:05]} {[%emt
00:02:32]} 19. Bxd5+ {[%clk 00:06:44]} {[%emt 00:00:01]} Kh8 {[%clk 00:06:27]}
{[%emt 00:00:42]} 20. Bxe4 {[%clk 00:06:48]} {[%emt 00:00:01]} Bb8 {[%clk
00:06:00]} {[%emt 00:00:33]} 21. f4 {[%clk 00:05:58]} {[%emt 00:00:55]} Qxc3
{[%clk 00:05:57]} {[%emt 00:00:08]} 22. Ra3 {[%clk 00:05:42]} {[%emt 00:00:21]}
Qxb4 {[%clk 00:05:50]} {[%emt 00:00:12]} 23. Rg3 {[%clk 00:04:07]} {[%emt
00:01:40]} Ba7 {[%clk 00:05:55]} {[%emt 00:00:01]} 24. Rxg6 {[%clk 00:01:41]}
{[%emt 00:02:31]} Qxd4+ {[%clk 00:05:26]} {[%emt 00:00:34]} 25. Qxd4 {[%clk
00:01:44]} {[%emt 00:00:02]} Bxd4+ {[%clk 00:05:29]} 26. Kh1 {[%clk 00:01:45]}
{[%emt 00:00:04]} Bf5 {[%clk 00:05:24]} {[%emt 00:00:11]} 27. Bxf5 {[%clk
00:01:38]} {[%emt 00:00:12]} Rxf5 {[%clk 00:05:27]} {[%emt 00:00:01]} 28. g4
{[%clk 00:01:36]} {[%emt 00:00:07]} Rf6 {[%clk 00:05:01]} {[%emt 00:00:31]} 29.
Rxf6 {[%clk 00:01:36]} {[%emt 00:00:05]} Bxf6 {[%clk 00:05:05]} 30. Rd1 {[%clk
00:01:07]} {[%emt 00:00:34]} Rd8 {[%clk 00:04:56]} {[%emt 00:00:14]} 31. Rxd8+
{[%clk 00:01:03]} {[%emt 00:00:09]} Bxd8 {[%clk 00:05:00]} 32. Kg2 {[%clk
00:01:04]} {[%emt 00:00:04]} Kg8 {[%clk 00:04:10]} {[%emt 00:00:56]} 33. Kf3
{[%clk 00:00:57]} {[%emt 00:00:12]} Kf7 {[%clk 00:04:12]} {[%emt 00:00:02]} 34.
Ke4 {[%clk 00:00:57]} {[%emt 00:00:04]} Ke6 {[%clk 00:03:34]} {[%emt 00:00:44]}
35. f5+ {[%clk 00:00:43]} {[%emt 00:00:19]} Kf7 {[%clk 00:02:39]} {[%emt
00:00:59]} 36. Kd5 {[%clk 00:00:47]} {[%emt 00:00:01]} Be7 {[%clk 00:02:24]}
{[%emt 00:00:20]} 37. Bd2 {[%clk 00:00:34]} {[%emt 00:00:18]} Bf8 {[%clk
00:01:31]} {[%emt 00:00:58]} 38. a5 {[%clk 00:00:34]} {[%emt 00:00:05]} Be7
{[%clk 00:01:32]} {[%emt 00:00:03]} 39. Bc3 {[%clk 00:00:27]} {[%emt 00:00:12]}
Bf8 {[%clk 00:01:13]} {[%emt 00:00:24]} 40. Be5 {[%clk 00:00:07]} {[%emt
00:00:25]} Bb4 {[%clk 00:01:07]} {[%emt 00:00:11]} 41. Bc7 {[%clk 00:00:11]}
Be7 {[%clk 00:01:11]} 42. Bd6 {[%clk 00:00:09]} {[%emt 00:00:07]} Bd8 {[%clk
00:01:14]} {[%emt 00:00:02]} 43. Bb4 {[%clk 00:00:13]} Bc7 {[%clk 00:01:12]}
{[%emt 00:00:07]} 44. Bd2 {[%clk 00:00:08]} {[%emt 00:00:11]} Bb8 {[%clk
00:00:57]} {[%emt 00:00:20]} 45. h4 {[%clk 00:00:10]} {[%emt 00:00:03]} Bg3
{[%clk 00:00:23]} {[%emt 00:00:39]} 46. h5 {[%clk 00:00:11]} {[%emt 00:00:04]}
Bc7 {[%clk 00:00:23]} {[%emt 00:00:05]} 47. Bc3 {[%clk 00:00:14]} {[%emt
00:00:03]} Bb8 {[%clk 00:00:15]} {[%emt 00:00:12]} 48. Kc5 {[%clk 00:00:15]}
{[%emt 00:00:04]} Bc7 {[%clk 00:00:18]} {[%emt 00:00:02]} 49. Kd5 {[%clk
00:00:15]} {[%emt 00:00:05]} Bb8 {[%clk 00:00:22]} 50. Be5 {[%clk 00:00:09]}
{[%emt 00:00:11]} Ba7 {[%clk 00:00:20]} {[%emt 00:00:07]} 51. Bc7 {[%clk
00:00:10]} {[%emt 00:00:04]} Bf2 {[%clk 00:00:19]} {[%emt 00:00:06]} 52. Kd6
{[%clk 00:00:09]} {[%emt 00:00:07]} Be1 {[%clk 00:00:08]} {[%emt 00:00:16]} 53.
Kd7 {[%clk 00:00:10]} {[%emt 00:00:03]} Kf6 {[%clk 00:00:10]} {[%emt 00:00:04]}
54. Bd8+ {[%clk 00:00:11]} {[%emt 00:00:04]} Ke5 {[%clk 00:00:14]} {[%emt
00:00:01]} 55. Kc8 {[%clk 00:00:12]} {[%emt 00:00:04]} Kf4 {[%clk 00:00:18]}
{[%emt 00:00:02]} 56. Kxb7 {[%clk 00:00:14]} {[%emt 00:00:03]} Kxg4 {[%clk
00:00:21]} {[%emt 00:00:01]} 57. Kxa6 {[%clk 00:00:10]} {[%emt 00:00:09]} Kxf5
{[%clk 00:00:25]} {[%emt 00:00:01]} 58. Kb5 {[%clk 00:00:11]} {[%emt 00:00:04]}
Bxa5 {[%clk 00:00:23]} {[%emt 00:00:07]} 59. Bxa5 {[%clk 00:00:12]} {[%emt
00:00:03]} Kg4 {[%clk 00:00:27]} 60. Bc3 {[%clk 00:00:16]} {[%emt 00:00:01]}
Kxh5 {[%clk 00:00:18]} {[%emt 00:00:14]} 61. Bxg7 {[%clk 00:00:20]} {[%emt
00:00:01]} Kg6 {[%clk 00:00:22]} 62. Bxh6 {[%emt 00:00:03]} 1/2-1/2

[Event "Championnat de France Universitaire 2022"]
[Site "Limoges, France"]
[Date "2022.02.05"]
[Round "6.3"]
[White "Bosc, Gabriel"]
[Black "Lafortune, Emerick"]
[Result "1-0"]
[TimeControl "15'+5''"]
[WhiteElo "2050"]
[BlackElo "2270"]

1. e4 {[%clk 00:15:08]} {[%emt 00:00:01]} e5 {[%clk 00:15:06]} {[%emt
00:00:04]} 2. Nf3 {[%clk 00:15:11]} {[%emt 00:00:02]} Nc6 {[%clk 00:15:10]}
{[%emt 00:00:03]} 3. Bc4 {[%clk 00:15:13]} {[%emt 00:00:01]} Bc5 {[%clk
00:15:14]} {[%emt 00:00:02]} 4. O-O {[%clk 00:15:16]} {[%emt 00:00:04]} Nf6
{[%clk 00:15:17]} 5. d4 {[%clk 00:15:15]} {[%emt 00:00:06]} Bxd4 {[%clk
00:14:49]} {[%emt 00:00:32]} 6. Nxd4 {[%clk 00:15:18]} {[%emt 00:00:03]} Nxd4
{[%clk 00:14:51]} {[%emt 00:00:03]} 7. Bg5 {[%clk 00:15:17]} {[%emt 00:00:05]}
h6 {[%clk 00:14:11]} {[%emt 00:00:45]} 8. Bh4 {[%clk 00:15:17]} {[%emt
00:00:04]} g5 {[%clk 00:13:24]} {[%emt 00:00:53]} 9. f4 {[%clk 00:15:08]}
{[%emt 00:00:13]} Nxe4 {[%clk 00:08:24]} {[%emt 00:05:06]} 10. fxe5 {[%clk
00:12:17]} {[%emt 00:02:57]} d5 {[%clk 00:04:53]} {[%emt 00:03:35]} 11. Qxd4
{[%clk 00:12:13]} {[%emt 00:00:09]} dxc4 {[%clk 00:04:48]} {[%emt 00:00:10]} 12.
Qxe4 {[%clk 00:12:10]} {[%emt 00:00:08]} gxh4 {[%clk 00:04:48]} {[%emt
00:00:05]} 13. Nc3 {[%clk 00:12:05]} {[%emt 00:00:10]} c6 {[%clk 00:04:29]}
{[%emt 00:00:24]} 14. Rad1 {[%clk 00:10:18]} {[%emt 00:01:52]} Qb6+ {[%clk
00:04:29]} {[%emt 00:00:04]} 15. Kh1 {[%clk 00:10:21]} {[%emt 00:00:01]} Be6
{[%clk 00:04:32]} {[%emt 00:00:02]} 16. Rf6 {[%clk 00:09:57]} {[%emt 00:00:29]}
Rg8 {[%clk 00:03:38]} {[%emt 00:00:59]} 17. Qh7 {[%clk 00:08:58]} {[%emt
00:01:04]} Ke7 {[%clk 00:03:28]} {[%emt 00:00:15]} 18. Qxh6 {[%clk 00:07:20]}
{[%emt 00:01:43]} Bg4 {[%clk 00:01:50]} {[%emt 00:01:43]} 19. Qxh4 {[%clk
00:05:13]} {[%emt 00:02:12]} Bxd1 {[%clk 00:01:03]} {[%emt 00:00:52]} 20. Rxc6+
{[%clk 00:05:13]} {[%emt 00:00:05]} Kf8 {[%clk 00:01:00]} {[%emt 00:00:08]} 21.
Rxb6 {[%clk 00:05:14]} {[%emt 00:00:04]} axb6 {[%clk 00:01:03]} 22. Nxd1 {[%clk
00:05:00]} {[%emt 00:00:19]} Rxa2 {[%clk 00:01:06]} {[%emt 00:00:02]} 23. Qd8+
{[%clk 00:04:10]} {[%emt 00:00:55]} Kg7 {[%clk 00:01:10]} {[%emt 00:00:02]} 24.
Qf6+ {[%clk 00:04:14]} {[%emt 00:00:02]} Kf8 {[%clk 00:00:53]} {[%emt
00:00:20]} 25. e6 {[%clk 00:04:12]} {[%emt 00:00:08]} Rg7 {[%clk 00:00:37]}
{[%emt 00:00:20]} 26. Qd8# {[%emt 00:00:02]} 1-0